bitfinex/quotes_BTCUSD_20220306
["timestamp","ask_amount","ask_price","bid_price","bid_amount"]
[1646562753324,0.17238553,38354.0,38351.0,0.0395171]
[1646562753581,0.17238553,38354.0,38342.0,0.33544668]
[1646562753785,0.006,38355.0,38340.0,0.02576]
[1646562753980,0.006,38355.0,38341.0,0.390334]
[1646562754383,0.006,38355.0,38342.0,0.36120668]
[1646562754582,0.006,38355.0,38346.0,0.02576]
[1646562754786,0.006,38355.0,38349.0,0.57198634]
[1646562755584,0.18156206,38359.0,38349.0,0.57198634]
[1646562755784,0.18156206,38359.0,38355.0,0.15917651]
[1646562755982,0.1,38372.0,38355.0,0.15917651]
[1646562756185,0.24614958,38370.0,38351.0,0.1]
[1646562756384,0.08334,38371.0,38346.0,0.43077622]
[1646562756586,0.08334,38371.0,38347.0,0.33077622]
[1646562756587,0.24545495,38370.0,38347.0,0.33077622]
[1646562756784,0.24545495,38370.0,38348.0,0.1]
[1646562756985,0.19828057,38360.0,38349.0,0.33077622]
[1646562757229,0.19828057,38360.0,38353.0,0.16689818]
[1646562757428,0.19828057,38360.0,38346.0,0.33077622]
[1646562757825,0.27505057,38360.0,38348.0,0.002]
[1646562758026,0.7953,38359.0,38348.0,0.002]
[1646562758229,0.21413878,38350.0,38348.0,0.002]
[1646562758429,0.30929878,38350.0,38348.0,0.002]
[1646562758827,0.09516,38350.0,38348.0,0.002]
[1646562759029,0.09516,38350.0,38346.0,0.20686548]
[1646562759631,1.04056867,38359.0,38346.0,0.20686548]
[1646562759829,0.17147367,38356.0,38346.0,0.20686548]
[1646562760034,0.006,38356.0,38346.0,0.20686548]
[1646562760232,0.006,38356.0,38347.0,0.72111022]
[1646562760530,0.006,38356.0,38347.0,0.33077622]
[1646562760830,0.00586943,38356.0,38344.0,0.33077622]
[1646562761076,0.7953,38363.0,38344.0,0.33077622]
[1646562761280,0.21868513,38359.0,38345.0,0.1]
[1646562761478,0.21868513,38359.0,38341.0,0.44379622]
[1646562761479,0.15459543,38353.0,38341.0,0.44379622]
[1646562761676,0.15459543,38353.0,38343.0,0.390334]
[1646562761878,0.15459543,38353.0,38348.0,0.20535932]
[1646562762279,0.1,38360.0,38348.0,0.20535932]
[1646562762280,0.06766808,38360.0,38348.0,0.20535932]
[1646562762479,0.7953,38361.0,38343.0,0.003]
[1646562762681,0.1479,38364.0,38343.0,0.003]
[1646562762682,0.7953,38363.0,38343.0,0.003]
[1646562762979,0.7953,38363.0,38341.0,0.44379622]
[1646562763376,0.15434672,38358.0,38342.0,0.390334]
[1646562763577,0.15434672,38358.0,38344.0,0.390334]
[1646562763778,0.15434672,38358.0,38345.0,0.43077622]
[1646562763978,0.82106,38363.0,38345.0,0.43077622]
[1646562764185,0.94871069,38401.0,38347.0,0.02576]
[1646562764186,0.3630521,38374.0,38347.0,0.02576]
[1646562764382,0.24524949,38375.0,38349.0,0.02576]
[1646562764579,0.24607625,38376.0,38351.0,0.02576]
[1646562764848,0.27193744,38375.0,38351.0,0.45653622]
[1646562765049,0.20472209,38369.0,38353.0,0.02576]
[1646562765252,0.20472209,38369.0,38355.0,0.02576]
[1646562765848,0.20472209,38369.0,38355.0,0.35653622]
[1646562766547,0.20472209,38369.0,38363.0,0.16162433]
[1646562767550,0.20472209,38369.0,38360.0,0.001]
[1646562767754,0.18799042,38363.0,38360.0,0.001]
[1646562770483,0.33077622,38362.0,38348.0,0.12063632]
[1646562770679,0.33077622,38362.0,38348.0,0.1]
[1646562770878,0.33077622,38362.0,38355.0,0.20987263]
[1646562771076,0.18799042,38363.0,38355.0,0.20987263]
[1646562773042,0.18799042,38363.0,38355.0,0.24835121]
[1646562774339,0.18799042,38363.0,38355.0,0.03847858]
[1646562774539,0.33079992,38362.0,38355.0,0.03847858]
[1646562774937,0.18799042,38363.0,38355.0,0.03847858]
[1646562775341,0.33079992,38368.0,38356.0,0.60069334]
[1646562775544,0.12576,38374.0,38356.0,0.21035934]
[1646562775545,0.33079992,38371.0,38356.0,0.21035934]
[1646562775740,0.33079992,38373.0,38356.0,0.21035934]
[1646562776174,0.17847016,38365.0,38356.0,0.21035934]
[1646562776376,0.33079992,38364.0,38356.0,0.21035934]
[1646562776574,0.17847016,38365.0,38356.0,0.21035934]
[1646562777075,0.33079992,38364.0,38356.0,0.21035934]
[1646562777377,0.17847016,38365.0,38356.0,0.21035934]
[1646562777378,0.15786491,38359.0,38356.0,0.21035934]
[1646562778375,0.15786491,38359.0,38355.0,0.03847858]
[1646562778981,0.33079992,38358.0,38355.0,0.03847858]
[1646562780339,0.16486491,38359.0,38355.0,0.03847858]
[1646562780938,0.33079992,38358.0,38355.0,0.03847858]
[1646562781337,0.15786491,38359.0,38355.0,0.03847858]
[1646562782240,0.15786491,38359.0,38348.0,0.390334]
[1646562782741,0.006,38361.0,38349.0,0.490334]
[1646562782943,0.006,38361.0,38349.0,0.84471058]
[1646562783140,0.33079992,38373.0,38349.0,0.84471058]
[1646562783345,0.7953,38375.0,38353.0,0.416094]
[1646562783579,0.1564862,38366.0,38354.0,0.32855808]
[1646562783777,0.1564862,38366.0,38362.0,0.20421597]
[1646562783978,0.1564862,38366.0,38355.0,0.390334]
[1646562784177,0.1564862,38366.0,38356.0,0.390334]
[1646562784776,0.33079992,38374.0,38354.0,0.1]
[1646562784977,0.39755334,38376.0,38362.0,0.17419577]
[1646562785178,1.19285334,38376.0,38362.0,0.17419577]
[1646562785776,0.1,38375.0,38362.0,0.17419577]
[1646562785980,0.17469098,38369.0,38362.0,0.17419577]
[1646562791685,0.17469098,38369.0,38364.0,0.19733974]
[1646562791886,0.30818276,38376.0,38364.0,0.19733974]
[1646562792087,2.41364247,38384.0,38364.0,0.19733974]
[1646562792088,0.33247972,38378.0,38364.0,0.19733974]
[1646562792287,0.33247972,38380.0,38364.0,0.19733974]
[1646562792686,0.1,38379.0,38364.0,0.19733974]
[1646562792890,0.18025012,38373.0,38364.0,0.19733974]
[1646562793087,0.33247972,38372.0,38364.0,0.19733974]
[1646562793290,1.12777972,38372.0,38358.0,0.01302]
[1646562793490,1.12777972,38372.0,38354.0,0.8015]
[1646562793491,0.7953,38370.0,38354.0,0.01302]
[1646562793687,0.43247972,38369.0,38350.0,0.01302]
[1646562793889,0.43247972,38369.0,38357.0,0.003]
[1646562794286,0.43247972,38369.0,38359.0,0.1739176]
[1646562794488,0.42747972,38369.0,38359.0,0.1739176]
[1646562795521,0.16071506,38362.0,38359.0,0.1739176]
[1646562795722,0.16071506,38362.0,38350.0,0.25552]
[1646562795921,0.16071506,38362.0,38353.0,0.390334]
[1646562796721,0.33247972,38367.0,38353.0,0.390334]
[1646562796919,0.33247972,38367.0,38351.0,0.390334]
[1646562797120,1.94303922,38374.0,38353.0,0.02576]
[1646562797121,0.33247972,38373.0,38353.0,0.02576]
[1646562797322,0.105,38372.0,38353.0,0.1]
[1646562797520,0.33247972,38371.0,38354.0,0.33247972]
[1646562797720,0.33247972,38371.0,38352.0,0.35823972]
[1646562797921,0.16461187,38365.0,38352.0,0.45823972]
[1646562798122,0.16461187,38365.0,38362.0,0.1622251]
[1646562798323,0.1,38372.0,38362.0,0.1622251]
[1646562798582,1.5918,38376.0,38362.0,0.1622251]
[1646562798583,0.1,38375.0,38362.0,0.1622251]
[1646562798982,0.09970774,38375.0,38362.0,0.1622251]
[1646562799186,0.7953,38378.0,38362.0,0.1622251]
[1646562799382,0.15645613,38369.0,38362.0,0.1622251]
[1646562800185,0.15645613,38369.0,38363.0,0.70627821]
[1646562801283,0.05808386,38377.0,38363.0,0.70627821]
[1646562801484,2.41138418,38381.0,38363.0,1.03875793]
[1646562801688,2.41138418,38381.0,38370.0,0.1930055]
[1646562801885,0.91005865,38380.0,38370.0,0.1930055]
[1646562802324,0.19170068,38374.0,38370.0,0.1930055]
[1646562802527,0.19170068,38374.0,38363.0,0.70627821]
[1646562804426,0.010431,38377.0,38364.0,0.33247972]
[1646562805027,0.010431,38377.0,38363.0,0.70627821]
[1646562805226,0.91005865,38380.0,38368.0,0.20418314]
[1646562805424,0.06158857,38378.0,38368.0,0.20418314]
[1646562805625,0.91005865,38380.0,38368.0,0.20418314]
[1646562806076,0.79536447,38380.0,38368.0,0.20418314]
[1646562806278,0.20801756,38376.0,38368.0,0.20418314]
[1646562809081,0.20629415,38376.0,38368.0,0.20418314]
[1646562813489,0.20629415,38376.0,38350.0,0.01302]
[1646562813490,0.156,38368.0,38350.0,0.01302]
[1646562813783,0.156,38368.0,38337.0,0.26706223]
[1646562813784,0.18176,38361.0,38337.0,0.26706223]
[1646562814082,1.1589751,38359.0,38340.0,0.06656222]
[1646562814283,0.7953,38357.0,38337.0,0.01303]
[1646562814483,1.17997972,38356.0,38348.0,0.17181854]
[1646562814883,0.1,38355.0,38348.0,0.17181854]
[1646562815182,1.89662004,38351.0,38348.0,0.17181854]
[1646562815383,0.1,38355.0,38350.0,0.18240384]
[1646562815583,0.1,38355.0,38348.0,0.17181854]
[1646562815984,0.1,38357.0,38348.0,0.17181854]
[1646562816185,0.33247972,38360.0,38348.0,0.17181854]
[1646562816186,0.1,38359.0,38354.0,0.1547027]
[1646562816384,0.34610768,38358.0,38354.0,0.1547027]
[1646562816787,0.1,38357.0,38354.0,0.1547027]
[1646562816984,0.1,38357.0,38343.0,0.01302]
[1646562816985,0.34610768,38356.0,38343.0,0.01302]
[1646562817225,0.34610768,38355.0,38344.0,0.390334]
[1646562817427,0.34610768,38360.0,38343.0,0.01302]
[1646562817825,0.1,38359.0,38342.0,0.06198929]
[1646562818023,0.1,38359.0,38351.0,0.17287519]
[1646562818024,0.34610768,38358.0,38351.0,0.17287519]
[1646562818224,1.14140768,38358.0,38351.0,0.17287519]
[1646562818426,0.34610768,38358.0,38351.0,0.17287519]
[1646562819124,0.34610768,38358.0,38351.0,0.35162212]
[1646562820325,0.34610768,38358.0,38351.0,0.17287519]
[1646562820726,0.34610768,38358.0,38341.0,0.03878]
[1646562820727,0.34610768,38358.0,38340.0,0.2389]
[1646562820992,0.8953,38357.0,38340.0,0.2389]
[1646562821196,1.15438768,38356.0,38340.0,0.2389]
[1646562821592,0.1,38355.0,38347.0,0.19708517]
[1646562822194,0.11297,38358.0,38347.0,0.19708517]
[1646562822395,0.34610768,38357.0,38347.0,0.19708517]
[1646562822595,0.01295,38356.0,38347.0,0.19708517]
[1646562822992,0.01295,38356.0,38350.0,0.18373487]
[1646562823592,0.36955268,38357.0,38350.0,0.18373487]
[1646562823793,0.36955268,38357.0,38353.0,0.1672766]
[1646562824194,0.35654268,38357.0,38353.0,0.1672766]
[1646562824394,0.35654268,38357.0,38342.0,0.07230247]
[1646562824600,0.35654268,38357.0,38341.0,0.4368]
[1646562825023,0.35654268,38357.0,38346.0,0.17393531]
[1646562825024,0.34610768,38357.0,38346.0,0.17393531]
[1646562825422,0.34610768,38357.0,38349.0,0.1623345]
[1646562825621,0.7953,38356.0,38349.0,0.1623345]
[1646562825822,0.44610768,38355.0,38349.0,0.1623345]
[1646562826023,0.44610768,38355.0,38350.0,0.1]
[1646562826024,1.24140768,38355.0,38350.0,0.1]
[1646562826223,1.411143,38355.0,38350.0,0.1]
[1646562826423,0.16973532,38354.0,38350.0,0.1]
[1646562826625,1.14140768,38353.0,38350.0,0.1]
[1646562826826,0.0522,38352.0,38350.0,0.1]
[1646562827044,0.34610768,38351.0,38350.0,0.1]
[1646562827326,0.34610768,38351.0,38350.0,0.06968936]
[1646562827327,1.29360768,38351.0,38350.0,0.06968936]
[1646562827529,1.463343,38351.0,38350.0,0.06968936]
[1646562828326,1.476363,38351.0,38330.0,0.001]
[1646562828578,0.7953,38349.0,38330.0,0.001]
[1646562828779,0.7953,38347.0,38330.0,0.001]
[1646562828986,0.7953,38345.0,38330.0,0.001]
[1646562829178,0.7953,38343.0,38336.0,0.33632703]
[1646562829379,0.0522,38342.0,38336.0,0.33632703]
[1646562829580,0.0522,38342.0,38336.0,0.15773636]
[1646562830381,0.39585984,38342.0,38336.0,0.15773636]
[1646562831579,0.39585984,38342.0,38338.0,0.17670259]
[1646562831779,0.39585984,38342.0,38336.0,0.15773636]
[1646562832330,0.39585984,38342.0,38338.0,6.035e-05]
[1646562833234,0.39585984,38342.0,38336.0,0.15773636]
[1646562833430,0.39585984,38342.0,38338.0,6.035e-05]
[1646562833930,1.19115984,38342.0,38338.0,6.035e-05]
[1646562834330,0.39585984,38342.0,38338.0,6.035e-05]
[1646562834530,0.39585984,38342.0,38336.0,0.15773636]
[1646562834729,0.39585984,38342.0,38338.0,6.035e-05]
[1646562835631,0.39585984,38342.0,38336.0,0.15773636]
[1646562836773,0.39585984,38342.0,38337.0,0.1929245]
[1646562836975,0.0522,38342.0,38337.0,0.1929245]
[1646562837375,0.1,38350.0,38338.0,0.390334]
[1646562837575,0.19396694,38353.0,38339.0,0.390334]
[1646562837576,0.01288,38352.0,38339.0,0.390334]
[1646562837782,0.16896694,38353.0,38345.0,0.16953423]
[1646562837976,0.51262678,38353.0,38345.0,0.16953423]
[1646562838174,0.34365984,38353.0,38345.0,0.16953423]
[1646562838378,0.51262678,38353.0,38345.0,0.16953423]
[1646562838577,0.16896694,38356.0,38345.0,0.16953423]
[1646562838779,0.34365984,38357.0,38351.0,0.20552691]
[1646562838980,0.16896694,38359.0,38351.0,0.18497422]
[1646562839176,0.35667984,38361.0,38351.0,0.18497422]
[1646562839177,0.010436,38357.0,38351.0,0.18497422]
[1646562839480,1.3064178,38360.0,38344.0,0.24142401]
[1646562839734,1.3064178,38360.0,38344.0,0.16924912]
[1646562839934,0.7953,38358.0,38344.0,0.16924912]
[1646562840134,1.13745086,38357.0,38344.0,0.16924912]
[1646562840337,0.34215086,38357.0,38344.0,0.16924912]
[1646562840532,0.16896694,38356.0,38351.0,0.1610603]
[1646562840835,0.5111178,38358.0,38351.0,0.35435072]
[1646562841033,0.16896694,38358.0,38351.0,0.35435072]
[1646562841237,0.35517086,38363.0,38351.0,0.35435072]
[1646562841435,0.7953,38360.0,38351.0,0.35435072]
[1646562841738,0.34215086,38359.0,38351.0,0.35435072]
[1646562842137,0.5111178,38359.0,38351.0,0.35435072]
[1646562842433,0.34215086,38359.0,38351.0,0.35435072]
[1646562842634,0.5111178,38359.0,38351.0,0.35435072]
[1646562842838,0.34215086,38358.0,38351.0,0.35435072]
[1646562843036,0.010435,38360.0,38351.0,0.35435072]
[1646562843242,0.010435,38360.0,38352.0,0.390334]
[1646562843243,0.17940194,38360.0,38352.0,0.390334]
[1646562843479,0.17940194,38360.0,38351.0,0.35435072]
[1646562843480,0.010435,38360.0,38353.0,0.390334]
[1646562843784,0.010435,38360.0,38353.0,0.416094]
[1646562844079,0.010435,38360.0,38356.0,0.390334]
[1646562844280,0.010435,38360.0,38358.0,0.390334]
[1646562844480,0.010435,38360.0,38358.0,0.57525019]
[1646562844978,0.010435,38360.0,38358.0,0.75050526]
[1646562845180,3.5e-05,38360.0,38358.0,0.416094]
[1646562845387,0.34215086,38376.0,38360.0,0.0253822]
[1646562845779,0.44319086,38377.0,38361.0,0.390334]
[1646562845780,0.010431,38370.0,38361.0,0.390334]
[1646562846179,0.010431,38370.0,38369.0,0.18355196]
[1646562846380,0.010431,38370.0,38369.0,0.09113334]
[1646562848130,0.010431,38370.0,38360.0,0.0253822]
[1646562848727,0.01003664,38370.0,38360.0,0.0253822]
[1646562849126,0.01003664,38370.0,38361.0,0.20048646]
[1646562849326,0.35140288,38370.0,38361.0,0.20048646]
[1646562850327,1.14670288,38370.0,38361.0,0.20048646]
[1646562850976,0.35140288,38370.0,38361.0,0.20048646]
[1646562851176,0.30140288,38370.0,38361.0,0.20048646]
[1646562851382,1.09670288,38370.0,38361.0,0.20048646]
[1646562851579,0.30140288,38370.0,38361.0,0.20010846]
[1646562852179,1.09670288,38370.0,38361.0,0.20010846]
[1646562853780,0.30140288,38370.0,38361.0,0.20010846]
[1646562854181,0.31442288,38370.0,38361.0,0.20010846]
[1646562854829,1.10972288,38370.0,38361.0,0.20010846]
[1646562855029,1.3691243,38370.0,38361.0,0.20010846]
[1646562855229,1.09670288,38370.0,38361.0,0.20010846]
[1646562856230,1.3561043,38370.0,38361.0,0.20010846]
[1646562856430,0.5608043,38370.0,38361.0,0.20010846]
[1646562857332,0.5608043,38370.0,38363.0,0.18288071]
[1646562857732,0.30140288,38370.0,38363.0,0.18288071]
[1646562858577,0.30140288,38370.0,38361.0,0.20010846]
[1646562858974,0.30140288,38370.0,38361.0,0.13469897]
[1646562859573,0.30140288,38370.0,38362.0,0.19188336]
[1646562859776,0.30140288,38370.0,38361.0,0.13469897]
[1646562860175,1.3561043,38370.0,38361.0,0.13469897]
[1646562860478,1.3561043,38370.0,38360.0,0.0253822]
[1646562860479,1.05470142,38368.0,38360.0,0.0253822]
[1646562860676,0.24231183,38369.0,38360.0,0.0253822]
[1646562860677,0.7953,38366.0,38360.0,0.0253822]
[1646562860878,0.7953,38364.0,38360.0,0.0253822]
[1646562861081,1.1343187,38363.0,38360.0,0.0253822]
[1646562861276,1.1865187,38363.0,38360.0,0.0253822]
[1646562862326,1.1856567,38363.0,38360.0,0.0253822]
[1646562863126,0.3903567,38363.0,38360.0,0.0253822]
[1646562863928,0.1,38362.0,38360.0,0.0253822]
[1646562864127,0.3390187,38361.0,38360.0,0.0253822]
[1646562864629,0.71130012,38366.0,38360.0,0.0253822]
[1646562864831,0.1,38366.0,38360.0,0.0253822]
[1646562865029,0.3390187,38365.0,38360.0,0.0253822]
[1646562865530,0.3390187,38365.0,38362.0,0.18055296]
[1646562865734,0.59842012,38365.0,38362.0,0.18055296]
[1646562865978,0.48133735,38367.0,38362.0,0.18055296]
[1646562866176,0.3390187,38367.0,38362.0,0.18055296]
[1646562866775,0.59842012,38367.0,38362.0,0.18055296]
[1646562867880,0.59842012,38367.0,38360.0,0.0253822]
[1646562869081,1.39372012,38367.0,38360.0,0.0253822]
[1646562869282,0.25940142,38365.0,38360.0,0.0253822]
[1646562869484,0.3390187,38364.0,38360.0,0.0253822]
[1646562869925,0.59842012,38364.0,38360.0,0.0253822]
[1646562870124,0.7953,38363.0,38360.0,0.0253822]
[1646562870325,0.3390187,38362.0,38360.0,0.0253822]
[1646562872128,0.005,38363.0,38360.0,0.0253822]
[1646562872730,0.26440142,38363.0,38360.0,0.0253822]
[1646562872932,0.3390187,38362.0,38360.0,0.0253822]
[1646562873976,0.20756298,38361.0,38360.0,0.0253822]
[1646562874181,0.54658168,38361.0,38360.0,0.0253822]
[1646562874376,0.20756298,38361.0,38360.0,0.0253822]
[1646562874575,0.20756298,38362.0,38360.0,0.0253822]
[1646562874778,0.20756298,38361.0,38360.0,0.0253822]
[1646562874977,0.54658168,38361.0,38360.0,0.0253822]
[1646562876378,0.20756298,38361.0,38360.0,0.0253822]
[1646562877231,0.25940142,38363.0,38360.0,0.0253822]
[1646562877232,0.010434,38362.0,38360.0,0.0253822]
[1646562877436,0.21799698,38362.0,38360.0,0.0253822]
[1646562878834,0.59842012,38364.0,38360.0,0.0253822]
[1646562878835,0.20756298,38361.0,38360.0,0.0253822]
[1646562879034,0.3390187,38364.0,38360.0,0.0253822]
[1646562879035,0.25940142,38362.0,38360.0,0.0253822]
[1646562879834,0.25940142,38361.0,38360.0,0.0253822]
[1646562880435,0.65046908,38363.0,38360.0,0.0253822]
[1646562880980,0.31145038,38362.0,38360.0,0.0253822]
[1646562881183,0.31145038,38361.0,38360.0,0.0253822]
[1646562881984,0.3390187,38361.0,38360.0,0.0253822]
[1646562882181,0.31145038,38362.0,38360.0,0.0253822]
[1646562882684,0.3390187,38361.0,38360.0,0.0253822]
[1646562883080,0.65046908,38361.0,38360.0,0.0253822]
[1646562883982,0.01291,38370.0,38360.0,0.0253822]
[1646562883983,0.31145038,38362.0,38360.0,0.0253822]
[1646562884284,0.25973995,38361.0,38360.0,0.0253822]
[1646562884930,0.31145038,38362.0,38360.0,0.0253822]
[1646562885131,0.32188338,38362.0,38360.0,0.0253822]
[1646562885534,0.31145038,38362.0,38360.0,0.0253822]
[1646562885931,0.31145038,38361.0,38360.0,0.0253822]
[1646562886732,0.31145038,38361.0,38360.0,0.02529947]
[1646562888683,0.3636751,38363.0,38360.0,0.02529947]
[1646562889177,0.31168171,38361.0,38360.0,0.02529947]
[1646562889577,0.31168171,38362.0,38360.0,0.02529947]
[1646562893248,0.31168171,38361.0,38360.0,0.02529947]
[1646562893650,0.31168171,38362.0,38360.0,0.02529947]
[1646562894049,0.31168171,38361.0,38360.0,0.02529947]
[1646562894250,0.31168171,38361.0,38360.0,0.24262118]
[1646562894754,0.25978759,38361.0,38360.0,0.97197388]
[1646562894958,0.31168171,38365.0,38360.0,0.97197388]
[1646562895249,0.3636751,38367.0,38360.0,0.97197388]
[1646562895250,0.31168171,38367.0,38361.0,0.390334]
[1646562895451,0.005,38368.0,38361.0,0.390334]
[1646562895452,0.31168171,38368.0,38361.0,0.390334]
[1646562895651,0.3636751,38371.0,38360.0,0.24262118]
[1646562895652,0.31168171,38367.0,38360.0,0.24262118]
[1646562896093,0.31168171,38366.0,38360.0,0.24262118]
[1646562896893,0.31168171,38366.0,38360.0,0.02529947]
[1646562897394,0.31168171,38365.0,38361.0,0.19690401]
[1646562897595,0.31168171,38365.0,38360.0,0.02529947]
[1646562898193,0.30668171,38365.0,38360.0,0.02529947]
[1646562898593,0.30668171,38365.0,38361.0,0.18395322]
[1646562898792,0.3636751,38366.0,38360.0,0.02529947]
[1646562899193,0.3636751,38367.0,38360.0,0.02529947]
[1646562899869,0.36325056,38367.0,38360.0,0.02529947]
[1646562900068,0.36325056,38368.0,38360.0,0.02529947]
[1646562900468,0.08258417,38368.0,38360.0,0.02529947]
[1646562900669,0.002,38369.0,38360.0,0.02529947]
[1646562900871,0.010432,38368.0,38360.0,0.02529947]
[1646562901068,0.08258721,38368.0,38360.0,0.02529947]
[1646562901271,0.002,38369.0,38360.0,0.02529947]
[1646562901471,0.002,38369.0,38365.0,0.16219953]
[1646562901670,0.1,38372.0,38365.0,0.16219953]
[1646562901873,0.11301,38374.0,38365.0,0.1106399]
[1646562902072,0.08259728,38373.0,38365.0,0.1106399]
[1646562902271,0.09561728,38372.0,38365.0,0.1106399]
[1646562902471,0.08259728,38372.0,38365.0,0.1106399]
[1646562902673,0.08259728,38371.0,38365.0,0.1106399]
[1646562902875,0.01302,38373.0,38365.0,0.30063161]
[1646562903073,0.08050347,38372.0,38365.0,0.30063161]
[1646562903273,0.08050347,38371.0,38365.0,0.30063161]
[1646562903492,0.08050347,38374.0,38365.0,0.30063161]
[1646562903691,0.24250464,38376.0,38365.0,0.30063161]
[1646562903692,0.01302,38373.0,38365.0,0.30063161]
[1646562903894,0.09352722,38375.0,38365.0,0.30063161]
[1646562904094,0.08050722,38374.0,38365.0,0.30063161]
[1646562904292,0.09352722,38373.0,38365.0,0.30063161]
[1646562904493,0.08050722,38372.0,38365.0,0.30063161]
[1646562904693,0.01302,38374.0,38365.0,0.30063161]
[1646562904896,0.005,38375.0,38365.0,0.30063161]
[1646562905196,0.06574586,38374.0,38365.0,0.30063161]
[1646562905795,0.06574586,38373.0,38365.0,0.30063161]
[1646562906094,0.31181712,38369.0,38365.0,0.30063161]
[1646562906694,0.31181712,38369.0,38366.0,0.390334]
[1646562907097,0.31181712,38370.0,38367.0,0.390334]
[1646562907337,0.31172712,38371.0,38367.0,0.390334]
[1646562907538,0.36378244,38374.0,38367.0,0.390334]
[1646562907539,0.31172712,38372.0,38371.0,0.07256166]
[1646562907736,0.36378244,38376.0,38371.0,0.46289566]
[1646562908041,0.32606858,38380.0,38373.0,0.18921935]
[1646562908042,0.01043,38374.0,38373.0,0.18921935]
[1646562908536,0.36378244,38378.0,38373.0,0.18921935]
[1646562908738,0.36378244,38379.0,38373.0,0.18921935]
[1646562909737,0.36378244,38380.0,38373.0,0.18921935]
[1646562909938,0.33784216,38382.0,38373.0,0.18921935]
[1646562909939,0.36378244,38382.0,38373.0,0.18921935]
[1646562910338,0.001,38381.0,38373.0,0.18921935]
[1646562910836,6.447e-05,38379.0,38373.0,0.18921935]
[1646562911080,6.447e-05,38379.0,38367.0,0.001]
[1646562911280,0.36384691,38379.0,38367.0,0.001]
[1646562911479,0.36384691,38379.0,38366.0,0.2433]
[1646562911480,0.33784216,38378.0,38366.0,0.2433]
[1646562911891,0.33784216,38378.0,38365.0,0.1]
[1646562912082,0.33784216,38378.0,38371.0,0.15809618]
[1646562912281,6.447e-05,38379.0,38371.0,0.15809618]
[1646562912482,0.33790663,38379.0,38371.0,0.15809618]
[1646562912982,6.447e-05,38379.0,38371.0,0.15809618]
[1646562913186,6.447e-05,38379.0,38373.0,0.1846632]
[1646562915035,6.447e-05,38379.0,38371.0,0.15809618]
[1646562916131,6.447e-05,38379.0,38372.0,0.1907608]
[1646562917733,6.447e-05,38379.0,38377.0,0.21497967]
[1646562917933,6.447e-05,38379.0,38377.0,0.18563757]
[1646562918336,6.447e-05,38379.0,38378.0,0.15693251]
[1646562918781,6.447e-05,38379.0,38378.0,0.23184452]
[1646562919283,6.447e-05,38379.0,38378.0,0.98367682]
[1646562919482,6.447e-05,38379.0,38378.0,0.62217852]
[1646562921281,6.447e-05,38379.0,38378.0,0.64793852]
[1646562921480,6.447e-05,38379.0,38378.0,0.98438836]
[1646562921683,6.447e-05,38379.0,38378.0,0.62217852]
[1646562921882,6.447e-05,38379.0,38378.0,0.98438836]
[1646562922083,4.47e-06,38379.0,38378.0,0.72678384]
[1646562922345,4.47e-06,38379.0,38378.0,0.97678384]
[1646562922544,4.47e-06,38379.0,38378.0,1.82428384]
[1646562922739,4.47e-06,38379.0,38378.0,1.85004384]
[1646562923140,0.37420644,38396.0,38379.0,5.553e-05]
[1646562923341,0.010424,38396.0,38392.0,0.16535894]
[1646562923547,0.36378244,38397.0,38392.0,0.16535894]
[1646562923743,0.36378244,38399.0,38392.0,0.16535894]
[1646562923943,0.36378244,38399.0,38387.0,0.02576]
[1646562924141,0.36378244,38399.0,38385.0,0.36220984]
[1646562924341,0.36378244,38399.0,38388.0,0.06524806]
[1646562924943,0.36378244,38398.0,38389.0,0.17514682]
[1646562925142,0.36378244,38399.0,38389.0,0.17514682]
[1646562925346,0.36778244,38400.0,38390.0,0.19772732]
[1646562925546,0.36378244,38400.0,38390.0,0.19772732]
[1646562925747,0.36378244,38401.0,38390.0,0.19772732]
[1646562926786,0.001,38402.0,38401.0,0.00011879]
[1646562926984,0.33744984,38402.0,38401.0,0.00011879]
[1646562927185,0.43744984,38402.0,38401.0,0.00011879]
[1646562927584,0.43644984,38402.0,38401.0,0.00011879]
[1646562929385,0.33644984,38402.0,38401.0,0.00011879]
[1646562929587,0.33644984,38405.0,38401.0,0.00011879]
[1646562929835,0.43644984,38405.0,38401.0,0.00011879]
[1646562931439,0.1,38405.0,38401.0,0.00011879]
[1646562931938,0.110422,38406.0,38401.0,0.00011879]
[1646562932538,0.1,38406.0,38401.0,0.18395994]
[1646562933336,0.1,38408.0,38401.0,0.00011879]
[1646562933601,0.33644984,38407.0,38401.0,0.00011879]
[1646562933800,0.1,38406.0,38401.0,0.00011879]
[1646562934008,0.33644984,38405.0,38401.0,0.00011879]
[1646562934202,0.1,38404.0,38401.0,0.00011879]
[1646562934402,0.33644984,38403.0,38401.0,0.00011879]
[1646562934604,0.1,38402.0,38401.0,0.00011879]
[1646562934807,1.23174984,38402.0,38401.0,0.00011879]
[1646562935203,1.23759541,38402.0,38401.0,0.00011879]
[1646562935603,1.29280177,38402.0,38401.0,8.79e-06]
[1646562935809,1.76993412,38402.0,38401.0,8.79e-06]
[1646562936005,2.94884083,38402.0,38379.0,5.553e-05]
[1646562936207,0.7953,38393.0,38379.0,5.553e-05]
[1646562936407,0.79501708,38391.0,38379.0,5.553e-05]
[1646562936613,0.38864984,38392.0,38379.0,5.553e-05]
[1646562936614,0.79501708,38389.0,38379.0,5.553e-05]
[1646562936808,0.33644984,38390.0,38379.0,0.15582648]
[1646562936809,0.79501708,38387.0,38379.0,0.15582648]
[1646562937008,0.38864984,38386.0,38379.0,0.15582648]
[1646562937253,0.48864984,38386.0,38379.0,0.15582648]
[1646562937851,0.48864984,38386.0,38379.0,0.33096583]
[1646562938051,0.33644984,38385.0,38379.0,0.33096583]
[1646562938252,0.1,38384.0,38379.0,0.33096583]
[1646562938451,0.33644984,38383.0,38379.0,0.15582648]
[1646562939050,0.33644984,38383.0,38379.0,5.553e-05]
[1646562939257,0.0522,38385.0,38379.0,5.553e-05]
[1646562939656,0.43644984,38389.0,38379.0,5.553e-05]
[1646562940253,0.43644984,38389.0,38384.0,0.16789542]
[1646562941084,0.43644984,38389.0,38384.0,0.33610275]
[1646562941889,0.1,38389.0,38384.0,0.33610275]
[1646562942284,0.1522,38391.0,38384.0,0.33610275]
[1646562942684,0.0522,38391.0,38384.0,0.16820733]
[1646562943086,0.005,38392.0,38384.0,0.16820733]
[1646562943484,0.33644984,38394.0,38384.0,0.16820733]
[1646562943683,0.34942984,38397.0,38390.0,0.1804288]
[1646562944283,0.8029,38402.0,38390.0,0.1804288]
[1646562944284,0.34941984,38401.0,38390.0,0.1804288]
[1646562944741,0.01295,38402.0,38390.0,0.1804288]
[1646562945545,0.01295,38402.0,38396.0,0.18346888]
[1646562945942,0.006,38403.0,38396.0,0.18346888]
[1646562946144,0.34937984,38405.0,38396.0,0.18346888]